[Event "Late-Titled-Tuesday-Blitz-February-27-2024"]
[Site "Chess.com"]
[Date "2024.02.27"]
[Round "4"]
[White "Zampronha1971"]
[Black "PattyCastillo"]
[Result "1/2-1/2"]
[WhiteElo "2335"]
[BlackElo "1982"]
[TimeControl "180+1"]
[EndTime "14:41:32 PST"]
[Termination "Game drawn - insufficient material"]

1. e4 {[%clk 0:02:50.7]} 1... c5 {[%clk 0:02:59.5]} 2. Nf3 {[%clk 0:02:50.3]}
2... d6 {[%clk 0:02:55.2]} 3. d4 {[%clk 0:02:50.7]} 3... cxd4 {[%clk 0:02:55.6]}
4. Nxd4 {[%clk 0:02:51.6]} 4... Nf6 {[%clk 0:02:56.1]} 5. Nc3 {[%clk 0:02:52.2]}
5... a6 {[%clk 0:02:56.7]} 6. Bg5 {[%clk 0:02:52.7]} 6... e6 {[%clk 0:02:56.7]}
7. f4 {[%clk 0:02:53.3]} 7... h6 {[%clk 0:02:53.6]} 8. Bh4 {[%clk 0:02:47.5]}
8... Qb6 {[%clk 0:02:52.2]} 9. a3 {[%clk 0:02:44.1]} 9... Be7 {[%clk 0:02:50.4]}
10. Bf2 {[%clk 0:02:43.8]} 10... Qc7 {[%clk 0:02:49.9]} 11. Qd2 {[%clk
0:02:35.3]} 11... Nbd7 {[%clk 0:02:46]} 12. O-O-O {[%clk 0:02:33]} 12... b5
{[%clk 0:02:42.9]} 13. Be2 {[%clk 0:02:26.7]} 13... Bb7 {[%clk 0:02:34.6]} 14.
Bf3 {[%clk 0:02:26.5]} 14... Rc8 {[%clk 0:02:20.3]} 15. Ndxb5 {[%clk 0:02:10]}
15... axb5 {[%clk 0:02:16.4]} 16. Nxb5 {[%clk 0:02:10.9]} 16... Qc4 {[%clk
0:01:42.5]} 17. e5 {[%clk 0:01:31.6]} 17... Bxf3 {[%clk 0:01:28.8]} 18. exf6
{[%clk 0:01:31.3]} 18... Bxd1 {[%clk 0:01:11.6]} 19. fxe7 {[%clk 0:01:29.4]}
19... Qxc2+ {[%clk 0:01:04.8]} 20. Qxc2 {[%clk 0:01:28.7]} 20... Bxc2 {[%clk
0:00:54.3]} 21. Nxd6+ {[%clk 0:01:28.3]} 21... Kxe7 {[%clk 0:00:54.2]} 22. Nxc8+
{[%clk 0:01:28.4]} 22... Rxc8 {[%clk 0:00:54.6]} 23. Kd2 {[%clk 0:01:21.4]}
23... Bb3 {[%clk 0:00:51.7]} 24. Rc1 {[%clk 0:01:18.6]} 24... Rxc1 {[%clk
0:00:46.6]} 25. Kxc1 {[%clk 0:01:19.5]} 25... Kd6 {[%clk 0:00:41.6]} 26. Kd2
{[%clk 0:01:18.8]} 26... Kd5 {[%clk 0:00:38.6]} 27. Kc3 {[%clk 0:01:16]} 27...
Bd1 {[%clk 0:00:32.8]} 28. Bd4 {[%clk 0:01:11.3]} 28... f6 {[%clk 0:00:30.9]}
29. b3 {[%clk 0:00:42.3]} 29... e5 {[%clk 0:00:30.5]} 30. fxe5 {[%clk
0:00:42.4]} 30... fxe5 {[%clk 0:00:31.4]} 31. Bg1 {[%clk 0:00:40]} 31... Nc5
{[%clk 0:00:23.4]} 32. b4 {[%clk 0:00:33.4]} 32... Na4+ {[%clk 0:00:20.3]} 33.
Kd2 {[%clk 0:00:33.4]} 33... Bb3 {[%clk 0:00:19.1]} 34. Bf2 {[%clk 0:00:25.9]}
34... g5 {[%clk 0:00:18.6]} 35. Ke3 {[%clk 0:00:22.5]} 35... h5 {[%clk
0:00:17.4]} 36. Kf3 {[%clk 0:00:21.1]} 36... Bd1+ {[%clk 0:00:16.5]} 37. Kg3
{[%clk 0:00:20.1]} 37... Nb2 {[%clk 0:00:13.4]} 38. Be3 {[%clk 0:00:19.1]} 38...
g4 {[%clk 0:00:11.7]} 39. Kh4 {[%clk 0:00:13.2]} 39... Nc4 {[%clk 0:00:11.3]}
40. Bc1 {[%clk 0:00:13.3]} 40... e4 {[%clk 0:00:11.1]} 41. g3 {[%clk 0:00:08.6]}
41... e3 {[%clk 0:00:11.4]} 42. Bxe3 {[%clk 0:00:07.9]} 42... Nxe3 {[%clk
0:00:12.3]} 43. Kxh5 {[%clk 0:00:08.4]} 43... Nf1 {[%clk 0:00:12.2]} 44. a4
{[%clk 0:00:06.7]} 44... Nxh2 {[%clk 0:00:08.7]} 45. a5 {[%clk 0:00:07.1]} 45...
Kc6 {[%clk 0:00:08.6]} 46. Kg5 {[%clk 0:00:06]} 46... Kb5 {[%clk 0:00:08.9]} 47.
Kf4 {[%clk 0:00:06.9]} 47... Nf1 {[%clk 0:00:08.7]} 48. Kg5 {[%clk 0:00:05.8]}
48... Nxg3 {[%clk 0:00:09]} 49. Kf4 {[%clk 0:00:06.4]} 49... Nf1 {[%clk
0:00:09]} 50. a6 {[%clk 0:00:04.7]} 50... Nd2 {[%clk 0:00:09.7]} 51. a7 {[%clk
0:00:02.7]} 51... Bf3 {[%clk 0:00:10.3]} 52. a8=Q {[%clk 0:00:01.7]} 52... Bxa8
{[%clk 0:00:09.1]} 53. Kxg4 {[%clk 0:00:02.6]} 53... Kxb4 {[%clk 0:00:09.1]} 54.
Kf4 {[%clk 0:00:03.5]} 54... Kc4 {[%clk 0:00:09.6]} 55. Kg5 {[%clk 0:00:04.4]}
55... Kd3 {[%clk 0:00:10.2]} 56. Kh6 {[%clk 0:00:05.3]} 56... Ne4 {[%clk
0:00:10.9]} 57. Kh7 {[%clk 0:00:05.3]} 57... Kd4 {[%clk 0:00:11.8]} 58. Kh6
{[%clk 0:00:06]} 58... Ke5 {[%clk 0:00:12.7]} 59. Kh7 {[%clk 0:00:06.9]} 59...
Kf4 {[%clk 0:00:13.6]} 60. Kh6 {[%clk 0:00:07.8]} 60... Nf6 {[%clk 0:00:14.3]}
61. Kg6 {[%clk 0:00:07.9]} 61... Ke5 {[%clk 0:00:14.4]} 62. Kf7 {[%clk
0:00:08.2]} 62... Be4 {[%clk 0:00:14.9]} 63. Kg7 {[%clk 0:00:09.1]} 63... Bd5
{[%clk 0:00:15.4]} 64. Kf8 {[%clk 0:00:09.1]} 64... Be4 {[%clk 0:00:15.2]} 65.
Kg7 {[%clk 0:00:09.8]} 65... Bf5 {[%clk 0:00:16]} 66. Kf8 {[%clk 0:00:10.6]}
66... Ke6 {[%clk 0:00:16.4]} 67. Kg7 {[%clk 0:00:10.6]} 67... Be4 {[%clk
0:00:16.4]} 68. Kh6 {[%clk 0:00:11.5]} 68... Kf5 {[%clk 0:00:15.8]} 69. Kg7
{[%clk 0:00:11.6]} 69... Bd5 {[%clk 0:00:15.2]} 70. Kf8 {[%clk 0:00:11.6]} 70...
Ke6 {[%clk 0:00:14.1]} 71. Kg7 {[%clk 0:00:11.1]} 71... Bc4 {[%clk 0:00:14]} 72.
Kg6 {[%clk 0:00:11.9]} 72... Bd3+ {[%clk 0:00:14.2]} 73. Kg5 {[%clk 0:00:12.8]}
73... Be2 {[%clk 0:00:13.6]} 74. Kf4 {[%clk 0:00:12.7]} 74... Bd3 {[%clk
0:00:14.5]} 75. Ke3 {[%clk 0:00:13.2]} 75... Bc2 {[%clk 0:00:15.4]} 76. Kd2
{[%clk 0:00:13.4]} 76... Bg6 {[%clk 0:00:16.3]} 77. Ke3 {[%clk 0:00:14.2]} 77...
Kd5 {[%clk 0:00:17.1]} 78. Kf4 {[%clk 0:00:14.5]} 78... Kd4 {[%clk 0:00:17.4]}
79. Kg5 {[%clk 0:00:14.8]} 79... Nd7 {[%clk 0:00:16.4]} 80. Kxg6 {[%clk
0:00:14.8]} 1/2-1/2

[Event "Late-Titled-Tuesday-Blitz-February-27-2024"]
[Site "Chess.com"]
[Date "2024.02.27"]
[Round "4"]
[White "Yushko_Olga"]
[Black "PapaieDudu"]
[Result "0-1"]
[WhiteElo "2195"]
[BlackElo "2396"]
[TimeControl "180+1"]
[EndTime "14:41:33 PST"]
[Termination "PapaieDudu won by checkmate"]

1. d4 {[%clk 0:02:59.7]} 1... d5 {[%clk 0:03:00.4]} 2. c4 {[%clk 0:03:00.3]}
2... e6 {[%clk 0:03:00.8]} 3. cxd5 {[%clk 0:03:00.8]} 3... Nf6 {[%clk
0:03:01.7]} 4. dxe6 {[%clk 0:03:00.7]} 4... Bxe6 {[%clk 0:03:02.4]} 5. Nc3
{[%clk 0:03:01.6]} 5... h6 {[%clk 0:03:02.9]} 6. Bf4 {[%clk 0:03:01.2]} 6... c6
{[%clk 0:03:03]} 7. e3 {[%clk 0:03:01.5]} 7... Bb4 {[%clk 0:03:03.2]} 8. Bd3
{[%clk 0:03:01.4]} 8... O-O {[%clk 0:03:03.6]} 9. Qc2 {[%clk 0:03:01.1]} 9...
Nbd7 {[%clk 0:03:02.9]} 10. Ne2 {[%clk 0:02:59.7]} 10... c5 {[%clk 0:03:02.5]}
11. O-O {[%clk 0:02:51.3]} 11... Rc8 {[%clk 0:03:02.8]} 12. dxc5 {[%clk
0:02:47.1]} 12... Nxc5 {[%clk 0:03:03.4]} 13. Bf5 {[%clk 0:02:46.7]} 13... Qe7
{[%clk 0:02:58.2]} 14. Bxe6 {[%clk 0:02:40.7]} 14... Nxe6 {[%clk 0:02:58.4]} 15.
Be5 {[%clk 0:02:36]} 15... Nd7 {[%clk 0:02:58.3]} 16. Qb3 {[%clk 0:02:31.5]}
16... Nxe5 {[%clk 0:02:56.5]} 17. Nd5 {[%clk 0:02:31.1]} 17... Qg5 {[%clk
0:02:47.9]} 18. Nxb4 {[%clk 0:02:25]} 18... Nc5 {[%clk 0:02:45.3]} 19. Qd5
{[%clk 0:02:20]} 19... Rfd8 {[%clk 0:02:43.3]} 20. f4 {[%clk 0:02:15.1]} 20...
Qh5 {[%clk 0:02:41.9]} 21. Qxe5 {[%clk 0:02:12]} 21... Qxe2 {[%clk 0:02:42.5]}
22. Nd5 {[%clk 0:02:04.6]} 22... Re8 {[%clk 0:02:38.1]} 23. Qf5 {[%clk
0:01:46.9]} 23... Ne6 {[%clk 0:02:37.4]} 24. Rf2 {[%clk 0:01:42.5]} 24... Qc4
{[%clk 0:02:32.1]} 25. Rf3 {[%clk 0:01:33.4]} 25... Rc5 {[%clk 0:02:30.5]} 26.
Nf6+ {[%clk 0:01:23.5]} 26... gxf6 {[%clk 0:02:25.3]} 27. Rg3+ {[%clk
0:01:21.2]} 27... Kf8 {[%clk 0:01:24.4]} 28. Qxf6 {[%clk 0:01:18.6]} 28... Qe4
{[%clk 0:01:19.2]} 29. Qxh6+ {[%clk 0:01:14.1]} 29... Ke7 {[%clk 0:01:19.1]} 30.
Qh4+ {[%clk 0:01:13.5]} 30... Kd7 {[%clk 0:01:15.2]} 31. Rd1+ {[%clk 0:01:12.6]}
31... Kc7 {[%clk 0:01:15.8]} 32. Qf6 {[%clk 0:01:07.6]} 32... Rf5 {[%clk
0:00:58.9]} 33. Qc3+ {[%clk 0:01:01.9]} 33... Rc5 {[%clk 0:00:58.6]} 34. Qf6
{[%clk 0:00:58.3]} 34... Rf5 {[%clk 0:00:58.9]} 35. Rc1+ {[%clk 0:00:53.5]}
35... Kb8 {[%clk 0:00:55.7]} 36. Qh6 {[%clk 0:00:27.7]} 36... Nc7 {[%clk
0:00:45.8]} 37. Qd6 {[%clk 0:00:24.9]} 37... Qe7 {[%clk 0:00:32.4]} 38. Qd3
{[%clk 0:00:21.3]} 38... Rd5 {[%clk 0:00:31.4]} 39. Qb3 {[%clk 0:00:16.1]} 39...
Rb5 {[%clk 0:00:30]} 40. Rxc7 {[%clk 0:00:11.4]} 40... Qxc7 {[%clk 0:00:18.5]}
41. Qxb5 {[%clk 0:00:11.7]} 41... Qc1+ {[%clk 0:00:19]} 42. Kf2 {[%clk
0:00:11.2]} 42... Qc2+ {[%clk 0:00:15.6]} 43. Qe2 {[%clk 0:00:11.2]} 43... Qc5
{[%clk 0:00:14.4]} 44. Rg5 {[%clk 0:00:11]} 44... f5 {[%clk 0:00:13.7]} 45. Qd3
{[%clk 0:00:09.7]} 45... Qc1 {[%clk 0:00:07.3]} 46. Qc3 {[%clk 0:00:09.1]} 46...
Qd1 {[%clk 0:00:05.7]} 47. Rg7 {[%clk 0:00:07.4]} 47... Ka8 {[%clk 0:00:04.7]}
48. Qc7 {[%clk 0:00:06.5]} 48... Qd2+ {[%clk 0:00:04.1]} 49. Kg3 {[%clk
0:00:05]} 49... Qe1+ {[%clk 0:00:03.6]} 50. Kh3 {[%clk 0:00:04.7]} 50... Qxe3+
{[%clk 0:00:02.5]} 51. g3 {[%clk 0:00:04.9]} 51... Qe4 {[%clk 0:00:02.2]} 52.
Rf7 {[%clk 0:00:04]} 52... Rh8+ {[%clk 0:00:01.8]} 53. Rh7 {[%clk 0:00:04.5]}
53... Re8 {[%clk 0:00:01.9]} 54. Qd7 {[%clk 0:00:04.3]} 54... Rb8 {[%clk
0:00:01.5]} 55. Qc7 {[%clk 0:00:04.4]} 55... Qf3 {[%clk 0:00:01.4]} 56. Rd7
{[%clk 0:00:03.5]} 56... Qf1+ {[%clk 0:00:01.6]} 57. Kh4 {[%clk 0:00:03.5]}
57... Qe2 {[%clk 0:00:01.6]} 58. Rd8 {[%clk 0:00:03.1]} 58... Qg4# {[%clk
0:00:02]} 0-1

[Event "Late-Titled-Tuesday-Blitz-February-27-2024"]
[Site "Chess.com"]
[Date "2024.02.27"]
[Round "4"]
[White "N_Mullodzhanov"]
[Black "JiiHart"]
[Result "0-1"]
[WhiteElo "2448"]
[BlackElo "2171"]
[TimeControl "180+1"]
[EndTime "14:41:51 PST"]
[Termination "JiiHart won by checkmate"]

1. e4 {[%clk 0:03:00.9]} 1... c5 {[%clk 0:02:59.3]} 2. c3 {[%clk 0:03:00.9]}
2... d5 {[%clk 0:02:58.8]} 3. exd5 {[%clk 0:03:00.9]} 3... Qxd5 {[%clk
0:02:59.1]} 4. d4 {[%clk 0:03:01.3]} 4... cxd4 {[%clk 0:02:59.1]} 5. cxd4 {[%clk
0:03:01]} 5... Nc6 {[%clk 0:02:59.2]} 6. Nf3 {[%clk 0:03:01.4]} 6... Bg4 {[%clk
0:02:59.3]} 7. Nc3 {[%clk 0:03:00.4]} 7... Bxf3 {[%clk 0:02:58.9]} 8. Nxd5
{[%clk 0:03:00.7]} 8... Bxd1 {[%clk 0:02:58.7]} 9. Nc7+ {[%clk 0:02:59.1]} 9...
Kd8 {[%clk 0:02:58.9]} 10. Nxa8 {[%clk 0:03:00]} 10... Bh5 {[%clk 0:02:58.3]}
11. Bf4 {[%clk 0:02:55]} 11... e6 {[%clk 0:02:57.4]} 12. Be2 {[%clk 0:02:54.3]}
12... Bb4+ {[%clk 0:02:28.2]} 13. Kf1 {[%clk 0:02:54.2]} 13... Bxe2+ {[%clk
0:02:05.3]} 14. Kxe2 {[%clk 0:02:55.1]} 14... Nge7 {[%clk 0:02:05.4]} 15. a3
{[%clk 0:02:30.6]} 15... Nd5 {[%clk 0:01:52.2]} 16. Be3 {[%clk 0:01:57.5]} 16...
Be7 {[%clk 0:01:46.9]} 17. b4 {[%clk 0:01:48.6]} 17... Kd7 {[%clk 0:01:46.8]}
18. Rhc1 {[%clk 0:01:22.5]} 18... Rxa8 {[%clk 0:01:44.5]} 19. Kd3 {[%clk
0:01:18.7]} 19... a6 {[%clk 0:01:32.2]} 20. Bd2 {[%clk 0:00:53.2]} 20... Rd8
{[%clk 0:01:27.9]} 21. Rc2 {[%clk 0:00:48.7]} 21... Ke8 {[%clk 0:01:26.1]} 22.
Rac1 {[%clk 0:00:35]} 22... Bf6 {[%clk 0:01:16.7]} 23. Rc4 {[%clk 0:00:26.3]}
23... e5 {[%clk 0:00:57.9]} 24. Re1 {[%clk 0:00:13.7]} 24... Kf8 {[%clk
0:00:49.6]} 25. Rxc6 {[%clk 0:00:08.2]} 25... bxc6 {[%clk 0:00:45.6]} 26. dxe5
{[%clk 0:00:09.1]} 26... Be7 {[%clk 0:00:41.7]} 27. Kc2 {[%clk 0:00:09.1]} 27...
c5 {[%clk 0:00:41.4]} 28. Kb3 {[%clk 0:00:08]} 28... cxb4 {[%clk 0:00:40.9]} 29.
axb4 {[%clk 0:00:08.9]} 29... Rb8 {[%clk 0:00:40.9]} 30. Re4 {[%clk 0:00:09.3]}
30... a5 {[%clk 0:00:40.4]} 31. Rd4 {[%clk 0:00:07.7]} 31... Nxb4 {[%clk
0:00:40.5]} 32. Ka4 {[%clk 0:00:08]} 32... Ke8 {[%clk 0:00:36.7]} 33. f4 {[%clk
0:00:05.6]} 33... Bc5 {[%clk 0:00:34.2]} 34. Rc4 {[%clk 0:00:05.5]} 34... Nd3
{[%clk 0:00:26.2]} 35. Kxa5 {[%clk 0:00:02]} 35... Bb6+ {[%clk 0:00:20.7]} 36.
Kb5 {[%clk 0:00:01.7]} 36... Be3+ {[%clk 0:00:19.9]} 37. Kc6 {[%clk 0:00:02.1]}
37... Bxd2 {[%clk 0:00:19.6]} 38. Rd4 {[%clk 0:00:02.6]} 38... Nb4+ {[%clk
0:00:17.8]} 39. Kc7 {[%clk 0:00:03]} 39... Ra8 {[%clk 0:00:13.2]} 40. Rxd2
{[%clk 0:00:03.2]} 40... Ra7+ {[%clk 0:00:10.4]} 41. Kb6 {[%clk 0:00:03.4]}
41... Rd7 {[%clk 0:00:08.6]} 42. Rb2 {[%clk 0:00:03]} 42... Nd5+ {[%clk
0:00:07.7]} 43. Kc5 {[%clk 0:00:03.4]} 43... Ke7 {[%clk 0:00:07.5]} 44. Rb5
{[%clk 0:00:03.2]} 44... Nxf4 {[%clk 0:00:07.5]} 45. Kc4 {[%clk 0:00:03]} 45...
Ne6 {[%clk 0:00:07.4]} 46. Kc3 {[%clk 0:00:03]} 46... Rc7+ {[%clk 0:00:06.8]}
47. Kb2 {[%clk 0:00:03.1]} 47... Rc5 {[%clk 0:00:06.8]} 48. Rb7+ {[%clk
0:00:03]} 48... Nc7 {[%clk 0:00:06.7]} 49. Rb3 {[%clk 0:00:03.9]} 49... Ke6
{[%clk 0:00:06.9]} 50. Rg3 {[%clk 0:00:03.7]} 50... g6 {[%clk 0:00:06.3]} 51.
Rh3 {[%clk 0:00:04.6]} 51... h5 {[%clk 0:00:05.8]} 52. g4 {[%clk 0:00:05.5]}
52... Rxe5 {[%clk 0:00:05.9]} 53. gxh5 {[%clk 0:00:05.5]} 53... gxh5 {[%clk
0:00:06.2]} 54. Rg3 {[%clk 0:00:05.7]} 54... f5 {[%clk 0:00:06.2]} 55. Rg6+
{[%clk 0:00:05.8]} 55... Kd5 {[%clk 0:00:06.1]} 56. Rh6 {[%clk 0:00:06.7]} 56...
f4 {[%clk 0:00:05.9]} 57. Kc3 {[%clk 0:00:07.4]} 57... Ke4 {[%clk 0:00:06]} 58.
Rc6 {[%clk 0:00:06.8]} 58... Nd5+ {[%clk 0:00:05.1]} 59. Kd2 {[%clk 0:00:07.7]}
59... f3 {[%clk 0:00:04.6]} 60. Rc4+ {[%clk 0:00:07.9]} 60... Kf5 {[%clk
0:00:04.3]} 61. h4 {[%clk 0:00:08.7]} 61... Nf4 {[%clk 0:00:04]} 62. Rc8 {[%clk
0:00:08.5]} 62... Kg4 {[%clk 0:00:04.2]} 63. Rg8+ {[%clk 0:00:08.3]} 63... Kxh4
{[%clk 0:00:04.6]} 64. Rg1 {[%clk 0:00:09.2]} 64... f2 {[%clk 0:00:04.7]} 65.
Rf1 {[%clk 0:00:09.1]} 65... Kg3 {[%clk 0:00:05.2]} 66. Rc1 {[%clk 0:00:07.6]}
66... Kg2 {[%clk 0:00:04.7]} 67. Kc3 {[%clk 0:00:07]} 67... f1=Q {[%clk
0:00:04.7]} 68. Rxf1 {[%clk 0:00:07.3]} 68... Kxf1 {[%clk 0:00:04.8]} 69. Kd4
{[%clk 0:00:08.2]} 69... Re2 {[%clk 0:00:04.4]} 70. Kc5 {[%clk 0:00:09.1]} 70...
Kf2 {[%clk 0:00:05]} 71. Kb4 {[%clk 0:00:10]} 71... Ke3 {[%clk 0:00:05.4]} 72.
Kc3 {[%clk 0:00:10.9]} 72... Rd2 {[%clk 0:00:05.8]} 73. Kb3 {[%clk 0:00:11.8]}
73... Kd3 {[%clk 0:00:05.9]} 74. Kb4 {[%clk 0:00:11.6]} 74... Rc2 {[%clk
0:00:06.2]} 75. Kb3 {[%clk 0:00:11.7]} 75... Nd5 {[%clk 0:00:04.5]} 76. Ka4
{[%clk 0:00:11.9]} 76... Rb2 {[%clk 0:00:04.7]} 77. Ka5 {[%clk 0:00:12]} 77...
Kc4 {[%clk 0:00:05]} 78. Ka6 {[%clk 0:00:12]} 78... Kc5 {[%clk 0:00:05.4]} 79.
Ka7 {[%clk 0:00:12.4]} 79... Kc6 {[%clk 0:00:06]} 80. Ka8 {[%clk 0:00:12.7]}
80... Kc7 {[%clk 0:00:06.5]} 81. Ka7 {[%clk 0:00:12.8]} 81... Ra2# {[%clk
0:00:06.9]} 0-1

[Event "Late-Titled-Tuesday-Blitz-February-27-2024"]
[Site "Chess.com"]
[Date "2024.02.27"]
[Round "4"]
[White "protectiago"]
[Black "ChessFanNM"]
[Result "0-1"]
[WhiteElo "2086"]
[BlackElo "2336"]
[TimeControl "180+1"]
[EndTime "14:41:51 PST"]
[Termination "ChessFanNM won by resignation"]

1. d4 {[%clk 0:02:57.9]} 1... d5 {[%clk 0:02:59.5]} 2. c4 {[%clk 0:02:57.9]}
2... e6 {[%clk 0:02:58.9]} 3. Nf3 {[%clk 0:02:57.8]} 3... Nf6 {[%clk 0:02:57.2]}
4. g3 {[%clk 0:02:57]} 4... c5 {[%clk 0:02:55.2]} 5. cxd5 {[%clk 0:02:55.2]}
5... exd5 {[%clk 0:02:36.8]} 6. Bg2 {[%clk 0:02:48.4]} 6... Nc6 {[%clk
0:02:30.5]} 7. O-O {[%clk 0:02:47.2]} 7... cxd4 {[%clk 0:02:29.3]} 8. Nxd4
{[%clk 0:02:46.1]} 8... Bc5 {[%clk 0:02:29]} 9. Nb3 {[%clk 0:02:38.5]} 9... Bb6
{[%clk 0:02:28]} 10. Bg5 {[%clk 0:02:34]} 10... Be6 {[%clk 0:02:06.6]} 11. Nc3
{[%clk 0:02:28.7]} 11... d4 {[%clk 0:02:02.3]} 12. Ne4 {[%clk 0:02:24.8]} 12...
O-O {[%clk 0:01:22.2]} 13. Nxf6+ {[%clk 0:02:19.3]} 13... gxf6 {[%clk
0:01:22.1]} 14. Bh6 {[%clk 0:02:19.2]} 14... Re8 {[%clk 0:01:21.4]} 15. Rc1
{[%clk 0:01:58.6]} 15... Rc8 {[%clk 0:01:20.3]} 16. Nd2 {[%clk 0:01:48.3]} 16...
Bf5 {[%clk 0:01:05.9]} 17. Nf3 {[%clk 0:01:42.4]} 17... Bg6 {[%clk 0:00:56.9]}
18. Nh4 {[%clk 0:01:15]} 18... Qe7 {[%clk 0:00:50.9]} 19. Nxg6 {[%clk
0:01:13.6]} 19... hxg6 {[%clk 0:00:50.6]} 20. Rc2 {[%clk 0:00:34]} 20... Qe6
{[%clk 0:00:45.9]} 21. Bc1 {[%clk 0:00:28.6]} 21... Qxa2 {[%clk 0:00:37]} 22. b4
{[%clk 0:00:22.3]} 22... Qe6 {[%clk 0:00:33.1]} 23. b5 {[%clk 0:00:22.1]} 23...
Nb4 {[%clk 0:00:23.6]} 24. Rxc8 {[%clk 0:00:19.9]} 24... Rxc8 {[%clk 0:00:22.6]}
25. Bxb7 {[%clk 0:00:18.6]} 25... Rc7 {[%clk 0:00:20.9]} 26. Bf3 {[%clk
0:00:18.4]} 26... Nd5 {[%clk 0:00:20.5]} 27. Ba3 {[%clk 0:00:16.2]} 27... Nc3
{[%clk 0:00:18.5]} 28. Qd3 {[%clk 0:00:16.1]} 28... Kg7 {[%clk 0:00:15.1]} 29.
Rc1 {[%clk 0:00:12.4]} 29... Qe5 {[%clk 0:00:12.3]} 30. Kg2 {[%clk 0:00:11.9]}
30... Nxb5 {[%clk 0:00:09.9]} 31. Rxc7 {[%clk 0:00:11.2]} 31... Nxc7 {[%clk
0:00:08.9]} 32. Bb2 {[%clk 0:00:11.2]} 32... Qb5 {[%clk 0:00:07.4]} 33. Qxb5
{[%clk 0:00:10.4]} 33... Nxb5 {[%clk 0:00:07.6]} 34. Bc6 {[%clk 0:00:09.3]}
34... Nd6 {[%clk 0:00:07.9]} 35. Kf3 {[%clk 0:00:07.7]} 35... Nc4 {[%clk
0:00:08]} 36. Ba1 {[%clk 0:00:06.8]} 36... Ne5+ {[%clk 0:00:08.2]} 37. Ke4
{[%clk 0:00:04.6]} 37... Nxc6 {[%clk 0:00:09.1]} 38. Kd5 {[%clk 0:00:05.1]}
38... Ne7+ {[%clk 0:00:09.3]} 39. Kd6 {[%clk 0:00:04.1]} 39... Nf5+ {[%clk
0:00:09.5]} 40. Kd5 {[%clk 0:00:03.1]} 40... Kf8 {[%clk 0:00:09]} 41. Kc6 {[%clk
0:00:03.7]} 41... Ke7 {[%clk 0:00:09]} 42. g4 {[%clk 0:00:04.1]} 42... Ng7
{[%clk 0:00:08.7]} 43. Kb7 {[%clk 0:00:04.3]} 43... Kd6 {[%clk 0:00:08.7]} 44.
Bb2 {[%clk 0:00:04.9]} 44... Ne6 {[%clk 0:00:08.6]} 45. Ba3+ {[%clk 0:00:04.8]}
45... Nc5+ {[%clk 0:00:08.2]} 46. Ka8 {[%clk 0:00:02.8]} 46... Kd5 {[%clk
0:00:08.4]} 47. Kb8 {[%clk 0:00:02.6]} 47... Nb3 {[%clk 0:00:07.7]} 48. Bc1
{[%clk 0:00:03]} 48... Nc5 {[%clk 0:00:07.5]} 49. e4+ {[%clk 0:00:03]} 49...
Nxe4 {[%clk 0:00:07.6]} 50. f3 {[%clk 0:00:02.5]} 50... Nc5 {[%clk 0:00:07.6]}
51. Bb2 {[%clk 0:00:02.3]} 51... d3 {[%clk 0:00:06.9]} 52. Bc3 {[%clk
0:00:02.3]} 52... Na4 {[%clk 0:00:06.6]} 53. Bd2 {[%clk 0:00:02.8]} 53... Kc4
{[%clk 0:00:06.9]} 54. f4 {[%clk 0:00:02.7]} 54... Nc5 {[%clk 0:00:06.9]} 55. f5
{[%clk 0:00:02.9]} 55... g5 {[%clk 0:00:05.6]} 56. h3 {[%clk 0:00:01.9]} 56...
Ne4 {[%clk 0:00:05.7]} 57. h4 {[%clk 0:00:02.8]} 57... gxh4 {[%clk 0:00:02.8]}
58. Be3 {[%clk 0:00:02.3]} 58... d2 {[%clk 0:00:02.3]} 59. g5 {[%clk 0:00:02.9]}
59... fxg5 {[%clk 0:00:02.2]} 60. Bxd2 {[%clk 0:00:03.3]} 60... Nxd2 {[%clk
0:00:02.2]} 61. f6 {[%clk 0:00:04]} 61... Ne4 {[%clk 0:00:02.1]} 62. Kc8 {[%clk
0:00:04.4]} 62... Nxf6 {[%clk 0:00:03]} 63. Kb7 {[%clk 0:00:04.1]} 63... Ng4
{[%clk 0:00:03.9]} 64. Kc6 {[%clk 0:00:04.6]} 64... Ne3 {[%clk 0:00:04.8]} 65.
Kd7 {[%clk 0:00:05.3]} 65... Nc2 {[%clk 0:00:04.8]} 66. Ke8 {[%clk 0:00:06]}
66... Nb4 {[%clk 0:00:05.7]} 67. Kxf7 {[%clk 0:00:06.6]} 67... Kb3 {[%clk
0:00:06.6]} 68. Kg6 {[%clk 0:00:07.2]} 68... Ka4 {[%clk 0:00:07.5]} 69. Kxg5
{[%clk 0:00:07.9]} 69... Kb5 {[%clk 0:00:08.1]} 70. Kxh4 {[%clk 0:00:08.5]}
70... a5 {[%clk 0:00:09]} 71. Kg3 {[%clk 0:00:09]} 71... a4 {[%clk 0:00:09.9]}
72. Kf3 {[%clk 0:00:09.3]} 72... a3 {[%clk 0:00:10.8]} 73. Ke2 {[%clk
0:00:10.2]} 73... a2 {[%clk 0:00:11.3]} 74. Kd1 {[%clk 0:00:10]} 74... a1=Q+
{[%clk 0:00:10.8]} 75. Kd2 {[%clk 0:00:10.7]} 75... Qa3 {[%clk 0:00:10.7]} 76.
Ke2 {[%clk 0:00:08.8]} 76... Kc4 {[%clk 0:00:11]} 0-1